fUSD/lending_fUSD_20251024
["ID","MTS","AMOUNT","RATE_DAILY","PERIOD"]
[392256817,1761283700565,-192.52783091,0.00018,2]
[392256819,1761283702596,-177.74955,0.00018,2]
[392256821,1761283703528,23169.42434898,0.00015,2]
[392256822,1761283705838,-257.26,0.00018,2]
[392256823,1761283708503,-336.80941551,0.00018,2]
[392256867,1761283721756,887.79868322,0.0001,2]
[392256868,1761283721981,2081.46224761,0.00015,2]
[392256869,1761283723242,-341.41209948,0.00017999,2]
[392256871,1761283724802,955.041594,0.00013699,2]
[392256873,1761283733075,-272.25045,0.00017908,2]
[392256874,1761283739028,-95.73277,0.00017908,2]
[392256875,1761283739052,-107.13365923,0.00017999,2]
[392256881,1761283754775,-51.45424129,0.00017999,2]
[392256882,1761283754798,-192.24479535,0.00017999,2]
[392256883,1761283758985,-255.73950642,0.00017999,2]
[392256884,1761283762836,-52.01569823,0.00017999,2]
[392256885,1761283762860,-384.44882869,0.00017999,2]
[392256888,1761283766025,-116.46767443,0.00017999,2]
[392256889,1761283766048,-128.1186872,0.00017999,2]
[392256890,1761283767746,-259.66355746,0.00017999,2]
[392256891,1761283769903,-164.05010272,0.00017999,2]
[392256892,1761283769932,-35.05880859,0.00017999,2]
[392256893,1761283772190,-256.22174236,0.00017999,2]
[392256895,1761283774830,-186.43945003,0.00017999,2]
[392256896,1761283776313,-22.27999902,0.00017999,2]
[392256897,1761283776335,-135.21028608,0.00017999,2]
[392256898,1761283780184,-191.14000016,0.00017999,2]
[392256899,1761283782301,-275.0589271,0.00017999,2]
[392256903,1761283784739,-27.88854791,0.00017999,2]
[392256904,1761283784765,-186.95227664,0.00017999,2]
[392256906,1761283789087,-167.00630155,0.00017999,2]
[392256907,1761283790535,-146.04142181,0.00017999,2]
[392256908,1761283790558,-65.52302425,0.00017999,2]
[392256909,1761283791951,-148.53251759,0.00017999,2]
[392256910,1761283791974,-109.90303635,0.00017999,2]
[392256911,1761283796452,-179.05169896,0.00017999,2]
[392256914,1761283798383,-211.04526469,0.00017999,2]
[392256915,1761283798412,-255.48946403,0.00017999,2]
[392256917,1761283814872,-187.46597134,0.00017998,2]
[392256918,1761283816806,-58.53402866,0.00017998,2]
[392256919,1761283816829,-290.773115,0.00017998,2]
[392256921,1761283821783,-219.30693218,0.00017998,2]
[392256922,1761283823800,-195.0,0.00017998,2]
[392256923,1761283825495,-263.36241005,0.00017998,2]
[392256924,1761283829510,-169.55754277,0.00017998,2]
[392256925,1761283829533,-17.44245723,0.00017998,2]
[392256972,1761283832031,-132.55754277,0.00017998,2]
[392256973,1761283832042,-244.51053597,0.00017999,2]
[392256974,1761283832052,-500.0,0.00017999,2]
[392256975,1761283832062,-500.0,0.00017999,2]
[392256976,1761283832073,-500.0,0.00017999,2]
[392256977,1761283832085,-24.27135224,0.00017999,2]
[392256978,1761283832119,-216.96769124,0.00017999,2]
[392256979,1761283832137,-258.38525471,0.00017999,2]
[392256980,1761283832150,-0.37570181,0.00017999,2]
[392256981,1761283832160,-500.0,0.00017999,2]
[392256982,1761283832169,-399.62429819,0.00017999,2]
[392256983,1761283832181,-100.37570181,0.00017999,2]
[392256984,1761283832190,-500.0,0.00017999,2]
[392256985,1761283832200,-500.0,0.00017999,2]
[392256986,1761283832211,-500.0,0.00017999,2]
[392256987,1761283832222,-500.0,0.00017999,2]
[392256988,1761283832231,-500.0,0.00017999,2]
[392256989,1761283832241,-500.0,0.00017999,2]
[392256990,1761283832252,-500.0,0.00017999,2]
[392256991,1761283832261,-500.0,0.00017999,2]
[392256992,1761283832272,-500.0,0.00017999,2]
[392256993,1761283832282,-500.0,0.00017999,2]
[392256994,1761283832292,-258.92760919,0.00017999,2]
[392256995,1761283832322,-241.07239081,0.00017999,2]
[392256996,1761283832332,-500.0,0.00017999,2]
[392256997,1761283832341,-500.0,0.00017999,2]
[392256998,1761283832351,-500.0,0.00017999,2]
[392256999,1761283832361,-500.0,0.00017999,2]
[392257000,1761283832370,-500.0,0.00017999,2]
[392257001,1761283832379,-500.0,0.00017999,2]
[392257002,1761283832389,-500.0,0.00017999,2]
[392257003,1761283832398,-500.0,0.00017999,2]
[392257005,1761283832408,-500.0,0.00017999,2]
[392257007,1761283832417,-500.0,0.00017999,2]
[392257009,1761283832427,-500.0,0.00017999,2]
[392257011,1761283832437,-500.0,0.00017999,2]
[392257013,1761283832448,-268.06748186,0.00017999,2]
[392257015,1761283832468,-231.93251814,0.00017999,2]
[392257017,1761283832478,-500.0,0.00017999,2]
[392257019,1761283832487,-500.0,0.00017999,2]
[392257021,1761283832500,-500.0,0.00017999,2]
[392257023,1761283832513,-432.7413922,0.00017999,2]
[392257025,1761283832522,-500.0,0.00017999,2]
[392257026,1761283832531,-500.0,0.00017999,2]
[392257027,1761283832540,-499.99999999,0.00017999,2]
[392257028,1761283832549,-500.0,0.00017999,2]
[392257029,1761283832558,-550.0,0.00017999,2]
[392257030,1761283832566,-265.15024685,0.00017999,2]
[392257031,1761283832578,-234.84975315,0.00017999,2]
[392257032,1761283832591,-500.0,0.00017999,2]
[392257033,1761283832599,-500.0,0.00017999,2]
[392257034,1761283832608,-500.0,0.00017999,2]
[392257035,1761283832617,-500.0,0.00017999,2]
[392257036,1761283832626,-500.0,0.00017999,2]
[392257037,1761283832635,-1763.4700905,0.00018,2]
[392257038,1761283832646,-875.88927357,0.00018,2]
[392257059,1761283834275,-228.36034156,0.00018,2]
[392257061,1761283836837,-285.90082933,0.00018,2]
[392257070,1761283837970,-522.32199885,0.00018,2]
[392257071,1761283838030,-2160.67451949,0.00018,2]
[392257072,1761283838041,-278.29072589,0.00018,2]
[392257073,1761283838196,-662.671405,0.00018,2]
[392257074,1761283838259,-1127.4,0.00018,2]
[392257079,1761283840055,-2778.41177616,0.00018,2]
[392257080,1761283840066,-1177.05920515,0.00018,2]
[392257081,1761283840077,-250.0,0.00018532,2]
[392257082,1761283840087,-1091.28432948,0.00019,2]
[392257083,1761283840098,-235.41660283,0.00019064,2]
[392257084,1761283840109,-351.06828002,0.00019292,2]
[392257085,1761283840119,-195.0,0.00019798,2]
[392257086,1761283840128,-195.0,0.00019799,2]
[392257087,1761283840138,-250.0,0.000198,2]
[392257088,1761283840148,-500.0,0.00019967,2]
[392257089,1761283840159,-1039.1528159,0.00019972,2]
[392257090,1761283840171,-261.99,0.00019972,2]
[392257091,1761283840181,-249.91732439,0.0002,2]
[392257092,1761283840196,-1517.84078323,0.0002,2]
[392257093,1761283840206,-261.99,0.0002088,2]
[392257094,1761283840218,-1813.35923853,0.00021,2]
[392257095,1761283840230,-261.99,0.00021788,2]
[392257096,1761283840240,-261.99,0.00022696,2]
[392257097,1761283840250,-261.99,0.00023604,2]
[392257098,1761283840260,-4568.05877297,0.000239,2]
[392257099,1761283840272,-8943.78386462,0.000239,2]
[392257100,1761283840285,-9077.54866152,0.000239,2]
[392257101,1761283840297,-8943.84023489,0.000239,2]
[392257102,1761283840311,-1389.73099751,0.000239,2]
[392257103,1761283840323,-290.26028083,0.000239,2]
[392257164,1761283841261,-1.6e-07,0.00021787,2]
[392257171,1761283841325,-303.94,0.00021787,2]
[392257175,1761283841456,-196.05999984,0.00021787,2]
[392257176,1761283841465,-275.51263994,0.00021787,2]
[392257177,1761283841475,-212.36842305,0.00021787,2]
[392257178,1761283841484,-500.0,0.00021787,2]
[392257179,1761283841493,-227.76537664,0.00021787,2]
[392257180,1761283841503,-58674.96228068,0.000239,2]
[392257181,1761283841514,-261.99,0.00024511,2]
[392257182,1761283841525,-500.0,0.00024932,2]
[392257183,1761283841535,-1290.91439523,0.00025,2]
[392257184,1761283841544,-360.0,0.00025,2]
[392257185,1761283841555,-261.99,0.00025419,2]
[392257186,1761283841565,-215.93,0.00025466,7]
[392257187,1761283841574,-2450.86280923,0.00026,10]
[392257188,1761283841584,-261.99,0.00026327,2]
[392257189,1761283841594,-27088.54993002,0.000264,2]
[392257190,1761283841604,-155.0,0.000264,2]
[392257191,1761283841613,-261.99,0.00027235,2]
[392257192,1761283841624,-215.93,0.00027543,7]
[392257193,1761283841633,-261.99,0.00028143,2]
[392257194,1761283841644,-261.99,0.00029051,2]
[392257195,1761283841654,-4394.24297635,0.00029204,2]
[392257196,1761283841665,-167.04,0.0002941,2]
[392257197,1761283841675,-215.93,0.00029619,30]
[392257198,1761283841685,-261.99,0.00029958,2]
[392257199,1761283841694,-261.99,0.00030866,2]
[392257200,1761283841704,-155.0,0.00031,120]
[392257201,1761283841713,-167.04,0.00031028,2]
[392257202,1761283841723,-215.93,0.00031696,30]
[392257203,1761283841733,-261.99,0.00031774,2]
[392257204,1761283841743,-168.0,0.00032166,2]
[392257205,1761283841752,-168.0,0.00032472,2]
[392257206,1761283841762,-168.0,0.00032514,2]
[392257207,1761283841771,-168.0,0.00032643,2]
[392257208,1761283841781,-167.04,0.00032646,2]
[392257209,1761283841790,-261.99,0.00032682,2]
[392257210,1761283841800,-168.0,0.00032706,2]
[392257211,1761283841810,-702.407,0.00032706,33]
[392257212,1761283841820,-1837.98336995,0.00032869,2]
[392257213,1761283841829,-153.0,0.00032877,30]
[392257214,1761283841839,-153.0,0.00032877,30]
[392257215,1761283841849,-153.0,0.00032877,30]
[392257216,1761283841860,-153.0,0.00032877,30]
[392257217,1761283841870,-153.0,0.00032877,30]
[392257218,1761283841880,-168.0,0.00033075,2]
[392257219,1761283841889,-168.0,0.00033163,2]
[392257220,1761283841899,-168.0,0.00033167,2]
[392257221,1761283841910,-261.99,0.0003359,2]
[392257222,1761283841920,-168.0,0.00033737,2]
[392257223,1761283841930,-215.93,0.00033772,30]
[392257224,1761283841940,-840.80400499,0.00033938,2]
[392257225,1761283841951,-168.0,0.00033944,2]
[392257226,1761283841961,-168.0,0.00033965,2]
[392257227,1761283841970,-168.0,0.00033984,2]
[392257228,1761283841980,-167.04,0.00034264,2]
[392257229,1761283841990,-168.0,0.00034394,2]
[392257230,1761283841999,-261.99,0.00034498,2]
[392257231,1761283842009,-12358.79699446,0.0003456,2]
[392257232,1761283842018,-168.0,0.0003459,2]
[392257233,1761283842028,-168.0,0.00034607,2]
[392257234,1761283842037,-477.25070503,0.0003462,2]
[392257235,1761283842047,-168.0,0.00035077,2]
[392257236,1761283842056,-746.7458452,0.00035124,2]
[392257237,1761283842066,-177.62,0.00035237,2]
[392257238,1761283842075,-250.0,0.00035249,2]
[392257239,1761283842084,-2751.0,0.0003534,120]
[392257240,1761283842094,-150.0,0.00035428,2]
[392257241,1761283842104,-310.3,0.00035511,30]
[392257242,1761283842114,-476.23156132,0.00035762,2]
[392257243,1761283842124,-1856.11,0.00035845,2]
[392257244,1761283842135,-215.93,0.00035849,60]
[392257245,1761283842145,-8621.2488021,0.00036,5]
[392257246,1761283842156,-499.77,0.00036232,2]
[392257247,1761283842166,-44469.22685714,0.00036836,2]
[392257248,1761283842176,-200.0,0.00036836,120]
[392257249,1761283842185,-11254.43767157,0.00036836,2]
[392257250,1761283842195,-58122.0249387,0.00036836,2]
[392257251,1761283842204,-15769.30237295,0.00036836,2]
[392257252,1761283842214,-543.8414245,0.00036836,2]
[392257253,1761283842223,-1863.46704841,0.00036836,2]
[392257254,1761283842233,-1134.4968281,0.00036836,2]
[392257255,1761283842243,-2178.83218282,0.00036836,5]
[392257256,1761283842255,-408.62851779,0.00036836,2]
[392257257,1761283842264,-1504.94388959,0.00036836,2]
[392257258,1761283842273,-24743.74486505,0.00036836,2]
[392257259,1761283842283,-20572.93366995,0.00036836,2]
[392257260,1761283842291,-2475.34258008,0.00036836,2]
[392257261,1761283842301,-3192.56067266,0.00036836,2]
[392257262,1761283842310,-876.45726366,0.00036836,2]
[392257263,1761283842319,-205.93061616,0.00036836,2]
[392257264,1761283842328,-505.59527868,0.00036836,2]
[392257265,1761283842339,-287.09477558,0.00036836,2]
[392257266,1761283842348,-5773.42644789,0.00036836,2]
[392257267,1761283842357,-1130.56257031,0.00036836,2]
[392257268,1761283842367,-4649.45781158,0.00036836,2]
[392257269,1761283842376,-1716.46822014,0.00036836,2]
[392257270,1761283842386,-1050.29054362,0.00036836,2]
[392257271,1761283842395,-12814.02737037,0.00036836,2]
[392257272,1761283842405,-160.39684713,0.00036836,2]
[392257273,1761283842414,-202.52369443,0.00036836,2]
[392257274,1761283842423,-464.96506262,0.00036836,120]
[392257275,1761283842432,-754.0018488,0.00036836,2]
[392257276,1761283842441,-4266.0,0.00036836,2]
[392257277,1761283842450,-1341.01260163,0.00036836,2]
[392257278,1761283842460,-151.57536982,0.00036836,2]
[392257279,1761283842469,-184.73256924,0.00036836,2]
[392257280,1761283842479,-3355.97683585,0.00036836,2]
[392257281,1761283842488,-500.0,0.00036838,2]
[392257282,1761283842498,-150.0,0.0003779,2]
[392257283,1761283842508,-150.0,0.0003779,120]
[392257284,1761283842521,-150.0,0.00037791,2]
[392257285,1761283842530,-150.0,0.00037791,2]
[392257286,1761283842540,-150.0,0.00037791,2]
[392257287,1761283842551,-150.0,0.00037846,2]
[392257288,1761283842561,-150.0,0.00037846,2]
[392257289,1761283842571,-14946.01,0.00037873,30]
[392257290,1761283842582,-200.0,0.00037901,2]
[392257291,1761283842594,-200.0,0.00037901,2]
[392257292,1761283842604,-215.93,0.00037926,60]
[392257293,1761283842614,-150.0,0.00038678,7]
[392257294,1761283842625,-150.0,0.00038733,7]
[392257295,1761283842635,-200.0,0.00038788,7]
[392257296,1761283842644,-4380.071,0.0003955,2]
[392257297,1761283842654,-275.28,0.0003983,14]
[392257298,1761283842663,-12500.0,0.0004,120]
[392257299,1761283842673,-1028.0,0.0004,18]
[392257300,1761283842683,-12499.99,0.0004,120]
[392257301,1761283842693,-215.93,0.00040002,60]
[392257302,1761283842704,-6084.75880606,0.00040028,30]
[392257303,1761283842713,-206.71,0.0004003,14]
[392257304,1761283842723,-619.427,0.0004015,2]
[392257305,1761283842733,-2136.5514,0.0004015,2]
[392257306,1761283842743,-12500.0,0.0004025,120]
[392257307,1761283842752,-233.7175,0.000404,2]
[392257308,1761283842761,-310.3,0.00040492,120]
[392257309,1761283842771,-12500.0,0.000405,120]
[392257310,1761283842780,-300.0,0.000406,14]
[392257311,1761283842789,-1425.0,0.00040618,2]
[392257312,1761283842799,-566.7895695,0.00040677,12]
[392257313,1761283842808,-1425.0,0.00040695,2]
[392257314,1761283842817,-700.0,0.000407,14]
[392257315,1761283842827,-2987.94654072,0.00040705,15]
[392257316,1761283842836,-1000.0,0.00040706,2]
[392257317,1761283842847,-12500.0,0.0004075,120]
[392257318,1761283842857,-152.06004125,0.00040768,7]
[392257319,1761283842867,-4576.5874789,0.00040777,2]
[392257320,1761283842876,-1425.0,0.00040796,2]
[392257321,1761283842886,-1425.0,0.00040796,2]
[392257322,1761283842897,-79410.6267983,0.00040796,3]
[392257323,1761283842907,-1000.0,0.000408,14]
[392257324,1761283842916,-151.0,0.00040803,14]
[392257325,1761283842927,-156.0,0.00040805,30]
[392257326,1761283842936,-500.0,0.00040805,2]
[392257327,1761283842945,-15036.3208992,0.00040806,2]
[392257328,1761283842956,-151.0,0.00040806,120]
[392257329,1761283842966,-151.0,0.00040806,120]
[392257330,1761283842975,-164.73535,0.00040806,120]
[392257331,1761283842984,-151.0,0.00040806,120]
[392257332,1761283842994,-261.952541,0.00040806,120]
[392257333,1761283843003,-261.952541,0.00040806,120]
[392257334,1761283843012,-156.75346,0.00040806,120]
[392257337,1761283843022,-261.952541,0.00040806,120]
[392257339,1761283843031,-261.952541,0.00040806,120]
[392257340,1761283843040,-151.0,0.00040806,120]
[392257341,1761283843049,-202.06786,0.00040806,120]
[392257342,1761283843059,-151.0,0.00040806,120]
[392257343,1761283843070,-486.738921,0.00040806,120]
[392257344,1761283843079,-486.738921,0.00040806,120]
[392257345,1761283843088,-154.218919,0.00040806,10]
[392257346,1761283843097,-151.0,0.00040806,120]
[392257347,1761283843106,-486.738921,0.00040806,120]
[392257348,1761283843116,-486.738921,0.00040806,120]
[392257349,1761283843125,-151.0,0.00040806,120]
[392257350,1761283843135,-151.0,0.00040806,120]
[392257351,1761283843144,-151.0,0.00040806,120]
[392257352,1761283843153,-147513.70245084,0.00040806,30]
[392257353,1761283843164,-151.0,0.00040822,60]
[392257354,1761283843175,-200.0,0.00040848,20]
[392257355,1761283843186,-269.09595,0.0004087,6]
[392257356,1761283843196,-1093.55883404,0.00040871,2]
[392257357,1761283843207,-2987.94654072,0.00040889,15]
[392257358,1761283843218,-380.48472534,0.00040899,2]
[392257359,1761283843229,-3138.3573,0.000409,2]
[392257360,1761283843239,-4036.8936,0.000409,2]
[392257361,1761283843248,-1400.0,0.000409,14]
[392257362,1761283843257,-26470.2089328,0.0004098,3]
[392257363,1761283843267,-269.09594,0.00040985,7]
[392257364,1761283843276,-13235.1044664,0.00040985,3]
[392257365,1761283843287,-105880.835731,0.0004099,3]
[392257366,1761283843298,-21604.7494614,0.0004099,3]
[392257367,1761283843308,-153.49,0.0004099,2]
[392257368,1761283843318,-202.47139032,0.0004099,7]
[392257369,1761283843328,-869.00446526,0.00040995,120]
[392257370,1761283843338,-21895.2507,0.00040995,60]
[392257371,1761283843349,-500.0,0.00040999,2]
[392257372,1761283843360,-171435.36933518,0.00041,3]
[392257373,1761283843370,-886.52,0.00041,30]
[392257374,1761283843379,-1357.71,0.00041,14]
[392257375,1761283843389,-12500.0,0.00041,120]
[392257376,1761283843398,-200.0,0.00041,60]
[392257377,1761283843408,-172.4872033,0.00041,60]
[392257378,1761283843417,-151.36937061,0.00041,60]
[392257379,1761283843426,-151.0,0.00041,120]
[392257380,1761283843435,-173.701867,0.00041,120]
[392257381,1761283843445,-151.0,0.00041,120]
[392257382,1761283843454,-151.0,0.00041,120]
[392257383,1761283843463,-151.0,0.00041,120]
[392257384,1761283843472,-151.0,0.00041,120]
[392257385,1761283843482,-151.0,0.00041,120]
[392257386,1761283843491,-151.0,0.00041,120]
[392257387,1761283843500,-151.0,0.00041,120]
[392257388,1761283843514,-154.54123,0.00041,120]
[392257389,1761283843523,-151.0,0.00041,120]
[392257390,1761283843533,-151.0,0.00041,120]
[392257391,1761283843542,-151.0,0.00041,120]
[392257392,1761283843553,-151.0,0.00041,120]
[392257393,1761283843562,-151.0,0.00041,120]
[392257394,1761283843572,-151.0,0.00041,120]
[392257395,1761283843582,-151.0,0.00041,120]
[392257396,1761283843594,-569.557569,0.00041,120]
[392257397,1761283843603,-569.557569,0.00041,120]
[392257398,1761283843613,-569.557569,0.00041,120]
[392257399,1761283843623,-569.557569,0.00041,120]
[392257407,1761283843702,-653.367021,0.00041,30]
[392257409,1761283843712,-653.367021,0.00041,30]
[392257411,1761283843721,-653.367021,0.00041,30]
[392257413,1761283843731,-653.367021,0.00041,30]
[392257415,1761283843740,-215.244104,0.00041,120]
[392257417,1761283843749,-167.346069,0.00041,120]
[392257419,1761283843758,-252.288825,0.00041,120]
[392257421,1761283843767,-252.288825,0.00041,120]
[392257423,1761283843776,-151.0,0.00041,120]
[392257424,1761283843785,-252.288825,0.00041,120]
[392257425,1761283843794,-151.0,0.00041,120]
[392257426,1761283843803,-252.288825,0.00041,120]
[392257427,1761283843812,-151.0,0.00041,120]
[392257428,1761283843821,-151.0,0.00041,120]
[392257429,1761283843830,-151.0,0.00041,120]
[392257430,1761283843839,-151.0,0.00041,120]
[392257431,1761283843848,-151.0,0.00041,120]
[392257432,1761283843857,-151.0,0.00041,120]
[392257433,1761283843867,-151.0,0.00041,120]
[392257434,1761283843876,-261.952541,0.00041,120]
[392257435,1761283843885,-261.952541,0.00041,120]
[392257436,1761283843894,-261.952541,0.00041,120]
[392257437,1761283843903,-151.0,0.00041,120]
[392257438,1761283843912,-261.952541,0.00041,120]
[392257439,1761283843921,-151.0,0.00041,120]
[392257440,1761283843931,-151.0,0.00041,120]
[392257441,1761283843939,-168.856766,0.00041,120]
[392257442,1761283843948,-215.215726,0.00041,60]
[392257443,1761283843957,-486.738921,0.00041,120]
[392257444,1761283843966,-486.738921,0.00041,120]
[392257445,1761283843975,-272.198777,0.00041,120]
[392257446,1761283843984,-486.738921,0.00041,120]
[392257447,1761283843994,-486.738921,0.00041,120]
[392257448,1761283844004,-151.0,0.00041,120]
[392257449,1761283844013,-2400.52771793,0.00041055,3]
[392257450,1761283844023,-1425.0,0.00041061,2]
[392257451,1761283844032,-161.0,0.00041068,120]
[392257452,1761283844042,-2987.94654072,0.00041074,15]
[392257453,1761283844051,-13235.1044664,0.00041075,3]
[392257454,1761283844062,-2400.52771793,0.00041075,3]
[392257455,1761283844073,-79410.6267983,0.00041075,3]
[392257456,1761283844083,-45610.0266407,0.00041075,3]
[392257457,1761283844092,-151.0,0.00041082,14]
[392257458,1761283844101,-487.0,0.00041085,5]
[392257459,1761283844110,-151.0,0.00041085,120]
[392257460,1761283844120,-206.463717,0.00041085,120]
[392257461,1761283844129,-157.1198,0.00041085,120]
[392257462,1761283844138,-153.754719,0.00041085,120]
[392257463,1761283844147,-154.071718,0.00041085,120]
[392257464,1761283844156,-151.0,0.00041085,120]
[392257465,1761283844166,-151.0,0.00041085,120]
[392257466,1761283844176,-151.0,0.00041085,120]
[392257467,1761283844190,-212.575144,0.00041085,120]
[392257468,1761283844206,-151.0,0.00041085,120]
[392257469,1761283844216,-151.0,0.00041085,120]
[392257470,1761283844225,-151.0,0.00041085,120]
[392257471,1761283844237,-151.0,0.00041085,120]
[392257472,1761283844248,-151.0,0.00041085,120]
[392257473,1761283844259,-156.103722,0.00041085,120]
[392257474,1761283844270,-161.463321,0.00041085,120]
[392257475,1761283844281,-159.415388,0.00041085,120]
[392257476,1761283844290,-151.0,0.00041085,120]
[392257477,1761283844299,-151.0,0.00041085,120]
[392257478,1761283844308,-151.0,0.00041085,120]
[392257479,1761283844317,-151.0,0.00041085,120]
[392257480,1761283844326,-165.56322,0.00041085,120]
[392257481,1761283844335,-164.484454,0.00041085,120]
[392257482,1761283844345,-151.0,0.00041085,120]
[392257483,1761283844357,-151.0,0.00041085,120]
[392257484,1761283844367,-569.557569,0.00041085,120]
[392257485,1761283844376,-569.557569,0.00041085,120]
[392257486,1761283844385,-569.557569,0.00041085,120]
[392257487,1761283844394,-569.557569,0.00041085,120]
[392257488,1761283844405,-653.367021,0.00041085,30]
[392257489,1761283844415,-653.367021,0.00041085,30]
[392257490,1761283844424,-653.367021,0.00041085,30]
[392257491,1761283844434,-653.367021,0.00041085,30]
[392257492,1761283844444,-252.288825,0.00041085,120]
[392257493,1761283844455,-252.288825,0.00041085,120]
[392257494,1761283844466,-151.0,0.00041085,120]
[392257495,1761283844475,-252.288825,0.00041085,120]
[392257496,1761283844485,-151.0,0.00041085,120]
[392257497,1761283844495,-252.288825,0.00041085,120]
[392257498,1761283844505,-206.013665,0.00041085,120]
[392257499,1761283844514,-151.0,0.00041085,120]
[392257500,1761283844527,-151.0,0.00041085,120]
[392257501,1761283844537,-222.478073,0.00041085,120]
[392257502,1761283844546,-151.0,0.00041085,120]
[392257503,1761283844555,-151.0,0.00041085,120]
[392257504,1761283844567,-14403.1663076,0.00041085,3]
[392257505,1761283844576,-155.675,0.00041094,120]
[392257506,1761283844585,-1003.1076,0.00041094,2]
[392257507,1761283844597,-500.0,0.00041094,2]
[392257508,1761283844607,-500.0,0.00041094,2]
[392257509,1761283844616,-500.0,0.00041094,2]
[392257510,1761283844631,-158.37162,0.00041095,30]
[392257511,1761283844642,-154.309446,0.00041095,30]
[392257512,1761283844652,-156.40798,0.00041095,30]
[392257513,1761283844663,-157.837817,0.00041095,30]
[392257514,1761283844674,-299.721146,0.00041095,30]
[392257515,1761283844684,-158.37162,0.00041095,30]
[392257516,1761283844694,-157.837817,0.00041095,30]
[392257517,1761283844708,-500.0,0.00041095,2]
[392257518,1761283844719,-158.371621,0.00041095,30]
[392257519,1761283844730,-154.309449,0.00041095,30]
[392257520,1761283844740,-157.837816,0.00041095,30]
[392257521,1761283844751,-1000.0,0.00041095,120]
[392257522,1761283844761,-156.40798,0.00041095,30]
[392257523,1761283844771,-156.40798,0.00041095,30]
[392257524,1761283844780,-172.73148,0.00041095,30]
[392257525,1761283844791,-156.407994,0.00041095,30]
[392257526,1761283844802,-476.23156132,0.00041095,30]
[392257527,1761283844811,-500.0,0.00041095,30]
[392257528,1761283844824,-500.0,0.00041095,30]
[392257529,1761283844834,-500.0,0.00041095,30]
[392257530,1761283844844,-500.0,0.00041095,30]
[392257531,1761283844854,-500.0,0.00041095,30]
[392257532,1761283844866,-610.78500302,0.00041095,30]
[392257533,1761283844883,-500.0,0.00041095,30]
[392257534,1761283844893,-500.0,0.00041095,30]
[392257535,1761283844902,-500.0,0.00041095,30]
[392257536,1761283844911,-500.0,0.00041095,30]
[392257537,1761283844920,-500.0,0.00041095,30]
[392257538,1761283844930,-500.0,0.00041095,30]
[392257539,1761283844939,-500.0,0.00041095,30]
[392257540,1761283844948,-500.0,0.00041095,30]
[392257541,1761283844958,-500.0,0.00041095,30]
[392257542,1761283844967,-500.0,0.00041095,30]
[392257543,1761283844976,-500.0,0.00041095,30]
[392257544,1761283844986,-158.371621,0.00041095,30]
[392257545,1761283844996,-500.0,0.00041095,30]
[392257546,1761283845005,-500.0,0.00041095,30]
[392257547,1761283845014,-500.0,0.00041095,30]
[392257548,1761283845024,-500.0,0.00041095,30]
[392257549,1761283845033,-500.0,0.00041095,30]
[392257550,1761283845043,-500.0,0.00041095,30]
[392257551,1761283845053,-500.0,0.00041095,2]
[392257552,1761283845063,-500.0,0.00041095,30]
[392257553,1761283845072,-500.0,0.00041095,30]
[392257554,1761283845081,-500.0,0.00041095,30]
[392257555,1761283845091,-500.0,0.00041095,30]
[392257556,1761283845100,-500.0,0.00041095,30]